[Event "Titled Tuesday Blitz June 29 2021"]
[White "hongnhung1234"]
[Black "OriTaichman"]
[WhiteElo "2343"]
[BlackElo "2651"]
[Result "0-1"]
[Round "01"]
[TimeControl "180+1"]
[Date "2021.06.29"]
[WhiteClock "0:00:07"]
[BlackClock "0:00:26"]

1. e4 {[%clk 0:03:00]}  c5 {[%clk 0:02:57]} 2. Nc3 {[%clk 0:03:00]}  Nc6 {[%clk 0:02:57]} 3. f4 {[%clk 0:03:00]}  g6 {[%clk 0:02:56]} 4. Nf3 {[%clk 0:03:00]}  Bg7 {[%clk 0:02:55]} 5. Bc4 {[%clk 0:03:01]}  Na5 {[%clk 0:02:55]} 6. Bb3 {[%clk 0:03:00]}  c4 {[%clk 0:02:50]} 7. Ba4 {[%clk 0:02:59]}  a6 {[%clk 0:02:48]} 8. b4 {[%clk 0:02:53]}  b5 {[%clk 0:02:46]} 9. bxa5 {[%clk 0:02:35]}  Qxa5 {[%clk 0:02:47]} 10. O-O {[%clk 0:02:24]}  b4 {[%clk 0:02:36]} 11. Nd5 {[%clk 0:02:13]}  Bxa1 {[%clk 0:02:34]} 12. c3 {[%clk 0:02:06]}  bxc3 {[%clk 0:02:29]} 13. dxc3 {[%clk 0:02:03]}  Bxc3 {[%clk 0:02:26]} 14. Nxc3 {[%clk 0:01:55]}  Qxc3 {[%clk 0:02:27]} 15. Qd5 {[%clk 0:01:44]}  Rb8 {[%clk 0:02:18]} 16. Ne5 {[%clk 0:01:44]}  Nf6 {[%clk 0:02:00]} 17. Qxf7+ {[%clk 0:01:43]}  Kd8 {[%clk 0:02:01]} 18. Rd1 {[%clk 0:01:30]}  Rb1 {[%clk 0:01:34]} 19. Nc6+ {[%clk 0:00:51]}  Kc7 {[%clk 0:01:34]} 20. Qxe7 {[%clk 0:00:52]}  Nxe4 {[%clk 0:00:57]} 21. Qxe4 {[%clk 0:00:27]}  Rxc1 {[%clk 0:00:56]} 22. Ne7 {[%clk 0:00:20]}  Bb7 {[%clk 0:00:41]} 23. Qe2 {[%clk 0:00:08]}  Qd4+ {[%clk 0:00:31]} 24. Kh1 {[%clk 0:00:07]}  Rxd1+ {[%clk 0:00:29]} 25. Bxd1 {[%clk 0:00:08]}  Re8 {[%clk 0:00:26]} 26. h4 {[%clk 0:00:05]}  Rxe7 {[%clk 0:00:25]} 27. Qxe7 {[%clk 0:00:06]}  Qxd1+ {[%clk 0:00:26]} 28. Kh2 {[%clk 0:00:07]}  Qd5 {[%clk 0:00:26]} 29. Qe2 {[%clk 0:00:06]}  Qxg2+ {[%clk 0:00:24]} 30. Qxg2 {[%clk 0:00:07]}  Bxg2 {[%clk 0:00:25]} 31. Kxg2 {[%clk 0:00:08]}  c3 {[%clk 0:00:25]} 32. h5 {[%clk 0:00:07]}  c2 {[%clk 0:00:25]} 33. hxg6 {[%clk 0:00:07]}  hxg6 {[%clk 0:00:26]} 34. Kg3 {[%clk 0:00:07]}  c1=Q {[%clk 0:00:26]} 0-1


[Site "https://www.chess.com"]

[Event "Titled Tuesday Blitz June 29 2021"]
[White "jovencata"]
[Black "Susal_De_Silva"]
[WhiteElo "2356"]
[BlackElo "2668"]
[Result "1-0"]
[Round "01"]
[TimeControl "180+1"]
[Date "2021.06.29"]
[WhiteClock "0:00:12"]
[BlackClock "0:00:25"]

1. Nf3 {[%clk 0:03:00]}  g6 {[%clk 0:02:59]} 2. g3 {[%clk 0:02:56]}  Bg7 {[%clk 0:02:58]} 3. Bg2 {[%clk 0:02:55]}  d6 {[%clk 0:02:59]} 4. O-O {[%clk 0:02:55]}  Nf6 {[%clk 0:02:57]} 5. c3 {[%clk 0:02:54]}  O-O {[%clk 0:02:56]} 6. d4 {[%clk 0:02:54]}  Nbd7 {[%clk 0:02:52]} 7. Nbd2 {[%clk 0:02:53]}  e5 {[%clk 0:02:52]} 8. e4 {[%clk 0:02:52]}  Re8 {[%clk 0:02:50]} 9. Re1 {[%clk 0:02:51]}  b5 {[%clk 0:02:49]} 10. dxe5 {[%clk 0:02:49]}  dxe5 {[%clk 0:02:48]} 11. a4 {[%clk 0:02:47]}  c6 {[%clk 0:02:48]} 12. Qb3 {[%clk 0:02:44]}  Nc5 {[%clk 0:02:43]} 13. Qc2 {[%clk 0:02:41]}  Nxa4 {[%clk 0:02:42]} 14. c4 {[%clk 0:02:41]}  Nc5 {[%clk 0:02:33]} 15. cxb5 {[%clk 0:02:35]}  Nd3 {[%clk 0:02:32]} 16. Rd1 {[%clk 0:02:28]}  Nxf2 {[%clk 0:02:19]} 17. Kxf2 {[%clk 0:02:24]}  Ng4+ {[%clk 0:02:19]} 18. Ke2 {[%clk 0:02:02]}  Qb6 {[%clk 0:02:18]} 19. Rf1 {[%clk 0:01:59]}  Qe3+ {[%clk 0:01:54]} 20. Kd1 {[%clk 0:01:41]}  Nf2+ {[%clk 0:01:52]} 21. Rxf2 {[%clk 0:01:35]}  Qxf2 {[%clk 0:01:53]} 22. Bf1 {[%clk 0:01:35]}  Bg4 {[%clk 0:01:51]} 23. Be2 {[%clk 0:01:32]}  Rad8 {[%clk 0:01:49]} 24. Qxc6 {[%clk 0:01:15]}  Bxf3 {[%clk 0:01:45]} 25. Bxf3 {[%clk 0:01:13]}  Qxf3+ {[%clk 0:01:43]} 26. Ke1 {[%clk 0:01:10]}  Qh1+ {[%clk 0:01:41]} 27. Nf1 {[%clk 0:01:07]}  Rc8 {[%clk 0:01:37]} 28. Qb7 {[%clk 0:00:41]}  Rc4 {[%clk 0:01:21]} 29. Rxa7 {[%clk 0:00:32]}  Rxe4+ {[%clk 0:01:16]} 30. Kf2 {[%clk 0:00:29]}  Rf8 {[%clk 0:00:59]} 31. Be3 {[%clk 0:00:27]}  h6 {[%clk 0:00:36]} 32. Bc5 {[%clk 0:00:23]}  Re2+ {[%clk 0:00:10]} 33. Kxe2 {[%clk 0:00:23]}  e4 {[%clk 0:00:11]} 34. Bxf8 {[%clk 0:00:21]}  Qf3+ {[%clk 0:00:11]} 35. Ke1 {[%clk 0:00:20]}  Bxf8 {[%clk 0:00:09]} 36. Qxf7+ {[%clk 0:00:15]}  Qxf7 {[%clk 0:00:10]} 37. Rxf7 {[%clk 0:00:15]}  Kxf7 {[%clk 0:00:11]} 38. Ke2 {[%clk 0:00:16]}  Bc5 {[%clk 0:00:11]} 39. Nd2 {[%clk 0:00:15]}  e3 {[%clk 0:00:11]} 40. Nc4 {[%clk 0:00:15]}  Bd4 {[%clk 0:00:11]} 41. b3 {[%clk 0:00:14]}  Ke6 {[%clk 0:00:11]} 42. Nxe3 {[%clk 0:00:15]}  Bc5 {[%clk 0:00:11]} 43. Kd3 {[%clk 0:00:15]}  Ke5 {[%clk 0:00:11]} 44. Ng4+ {[%clk 0:00:15]}  Kf5 {[%clk 0:00:11]} 45. Nxh6+ {[%clk 0:00:16]}  Kf6 {[%clk 0:00:12]} 46. Ng4+ {[%clk 0:00:16]}  Kg5 {[%clk 0:00:12]} 47. Ne3 {[%clk 0:00:16]}  Bb6 {[%clk 0:00:13]} 48. Nd5 {[%clk 0:00:16]}  Bg1 {[%clk 0:00:13]} 49. b6 {[%clk 0:00:16]}  Bxh2 {[%clk 0:00:13]} 50. Nc3 {[%clk 0:00:10]}  Kf5 {[%clk 0:00:13]} 51. Ne4 {[%clk 0:00:10]}  Bg1 {[%clk 0:00:12]} 52. b7 {[%clk 0:00:09]}  Ba7 {[%clk 0:00:13]} 53. Nd6+ {[%clk 0:00:07]}  Kg4 {[%clk 0:00:14]} 54. Ne4 {[%clk 0:00:07]}  Bb8 {[%clk 0:00:14]} 55. b4 {[%clk 0:00:07]}  Kf3 {[%clk 0:00:14]} 56. Kd4 {[%clk 0:00:06]}  Kg4 {[%clk 0:00:14]} 57. Ke3 {[%clk 0:00:05]}  Kf5 {[%clk 0:00:15]} 58. Kf3 {[%clk 0:00:06]}  Ke5 {[%clk 0:00:15]} 59. Nc5 {[%clk 0:00:04]}  Kd5 {[%clk 0:00:16]} 60. Nd7 {[%clk 0:00:04]}  Kc6 {[%clk 0:00:16]} 61. Nxb8+ {[%clk 0:00:04]}  Kxb7 {[%clk 0:00:17]} 62. Nd7 {[%clk 0:00:03]}  Kc7 {[%clk 0:00:17]} 63. Ne5 {[%clk 0:00:04]}  Kd6 {[%clk 0:00:18]} 64. Nxg6 {[%clk 0:00:05]}  Kd5 {[%clk 0:00:19]} 65. Nf4+ {[%clk 0:00:06]}  Kc4 {[%clk 0:00:20]} 66. g4 {[%clk 0:00:07]}  Kxb4 {[%clk 0:00:21]} 67. g5 {[%clk 0:00:07]}  Kc3 {[%clk 0:00:21]} 68. Ke4 {[%clk 0:00:08]}  Kd2 {[%clk 0:00:22]} 69. Kf5 {[%clk 0:00:09]}  Ke1 {[%clk 0:00:23]} 70. g6 {[%clk 0:00:10]}  Kf2 {[%clk 0:00:24]} 71. g7 {[%clk 0:00:11]}  Kg1 {[%clk 0:00:24]} 72. g8=Q+ {[%clk 0:00:12]}  Kh2 {[%clk 0:00:25]} 73. Qg2# {[%clk 0:00:12]} 1-0


[Site "https://www.chess.com"]

[Event "Titled Tuesday Blitz June 29 2021"]
[White "konzip22"]
[Black "Aborigen_came"]
[WhiteElo "2346"]
[BlackElo "2653"]
[Result "0-1"]
[Round "01"]
[TimeControl "180+1"]
[Date "2021.06.29"]
[WhiteClock "0:00:01"]
[BlackClock "0:00:02"]

1. e4 {[%clk 0:02:54]}  Nc6 {[%clk 0:02:58]} 2. Nc3 {[%clk 0:02:53]}  e6 {[%clk 0:02:51]} 3. d4 {[%clk 0:02:52]}  d5 {[%clk 0:02:49]} 4. e5 {[%clk 0:02:47]}  f6 {[%clk 0:02:45]} 5. f4 {[%clk 0:02:46]}  Nh6 {[%clk 0:02:41]} 6. Nf3 {[%clk 0:02:45]}  Be7 {[%clk 0:02:31]} 7. Bb5 {[%clk 0:02:37]}  O-O {[%clk 0:02:30]} 8. O-O {[%clk 0:02:35]}  a6 {[%clk 0:02:26]} 9. exf6 {[%clk 0:02:27]}  Bxf6 {[%clk 0:02:16]} 10. Bxc6 {[%clk 0:02:26]}  bxc6 {[%clk 0:02:17]} 11. Ne5 {[%clk 0:02:27]}  Qd6 {[%clk 0:01:56]} 12. Na4 {[%clk 0:02:23]}  Nf7 {[%clk 0:01:38]} 13. Re1 {[%clk 0:02:13]}  Be7 {[%clk 0:01:36]} 14. Nc5 {[%clk 0:02:02]}  Nxe5 {[%clk 0:01:33]} 15. fxe5 {[%clk 0:01:56]}  Qd8 {[%clk 0:01:32]} 16. Nd3 {[%clk 0:01:53]}  Bd7 {[%clk 0:01:06]} 17. Be3 {[%clk 0:01:49]}  Be8 {[%clk 0:01:06]} 18. Qg4 {[%clk 0:01:46]}  Rf5 {[%clk 0:00:59]} 19. Nf4 {[%clk 0:01:35]}  Qd7 {[%clk 0:00:54]} 20. Rf1 {[%clk 0:01:17]}  Bg5 {[%clk 0:00:49]} 21. Rae1 {[%clk 0:01:12]}  Bxf4 {[%clk 0:00:41]} 22. Rxf4 {[%clk 0:01:06]}  Bh5 {[%clk 0:00:39]} 23. Qg3 {[%clk 0:01:02]}  Rxf4 {[%clk 0:00:38]} 24. Bxf4 {[%clk 0:01:02]}  Rf8 {[%clk 0:00:38]} 25. b4 {[%clk 0:00:55]}  Qf7 {[%clk 0:00:35]} 26. Be3 {[%clk 0:00:47]}  Bg6 {[%clk 0:00:32]} 27. c3 {[%clk 0:00:40]}  Be4 {[%clk 0:00:29]} 28. h4 {[%clk 0:00:36]}  Kh8 {[%clk 0:00:25]} 29. Kh2 {[%clk 0:00:34]}  h6 {[%clk 0:00:24]} 30. Re2 {[%clk 0:00:24]}  Qh5 {[%clk 0:00:20]} 31. Rf2 {[%clk 0:00:20]}  Bf5 {[%clk 0:00:17]} 32. Kg1 {[%clk 0:00:17]}  Rg8 {[%clk 0:00:17]} 33. a3 {[%clk 0:00:13]}  g6 {[%clk 0:00:17]} 34. Qf4 {[%clk 0:00:11]}  Kh7 {[%clk 0:00:16]} 35. Kh2 {[%clk 0:00:09]}  g5 {[%clk 0:00:16]} 36. Qg3 {[%clk 0:00:04]}  Rg7 {[%clk 0:00:13]} 37. Kg1 {[%clk 0:00:04]}  gxh4 {[%clk 0:00:13]} 38. Qf3 {[%clk 0:00:04]}  Qg6 {[%clk 0:00:11]} 39. Kh2 {[%clk 0:00:04]}  Qg3+ {[%clk 0:00:09]} 40. Kh1 {[%clk 0:00:02]}  Qg6 {[%clk 0:00:09]} 41. Qf4 {[%clk 0:00:02]}  h3 {[%clk 0:00:07]} 42. g3 {[%clk 0:00:02]}  Be4+ {[%clk 0:00:07]} 43. Kh2 {[%clk 0:00:02]}  Bf5 {[%clk 0:00:07]} 44. Qh4 {[%clk 0:00:02]}  Rf7 {[%clk 0:00:06]} 45. g4 {[%clk 0:00:01]}  Bxg4 {[%clk 0:00:04]} 46. Rxf7+ {[%clk 0:00:01]}  Qxf7 {[%clk 0:00:04]} 47. Qxg4 {[%clk 0:00:02]}  Qe8 {[%clk 0:00:02]} 48. Qxh3 {[%clk 0:00:02]}  Qg6 {[%clk 0:00:02]} 49. Qg3 {[%clk 0:00:02]}  Qc2+ {[%clk 0:00:02]} 50. Kh3 {[%clk 0:00:02]}  Qd3 {[%clk 0:00:02]} 51. Bf4 {[%clk 0:00:02]}  Qf5+ {[%clk 0:00:02]} 52. Qg4 {[%clk 0:00:02]}  Qd3+ {[%clk 0:00:02]} 53. Qg3 {[%clk 0:00:02]}  Qf1+ {[%clk 0:00:02]} 54. Kh2 {[%clk 0:00:02]}  Qe2+ {[%clk 0:00:02]} 55. Qg2 {[%clk 0:00:02]}  Qh5+ {[%clk 0:00:02]} 56. Qh3 {[%clk 0:00:02]}  Qe2+ {[%clk 0:00:02]} 57. Qg2 {[%clk 0:00:02]}  Qh5+ {[%clk 0:00:02]} 58. Kg1 {[%clk 0:00:02]}  Qd1+ {[%clk 0:00:02]} 59. Qf1 {[%clk 0:00:03]}  Qg4+ {[%clk 0:00:02]} 60. Kh2 {[%clk 0:00:01]}  Qh4+ {[%clk 0:00:02]} 0-1


[Site "https://www.chess.com"]

[Event "Titled Tuesday Blitz June 29 2021"]
[White "lider34"]
[Black "Alexsur1981"]
[WhiteElo "2443"]
[BlackElo "2862"]
[Result "0-1"]
[Round "01"]
[TimeControl "180+1"]
[Date "2021.06.29"]
[WhiteClock "0:00:15"]
[BlackClock "0:01:42"]

1. e4 {[%clk 0:02:59]}  c5 {[%clk 0:02:59]} 2. c3 {[%clk 0:02:58]}  e6 {[%clk 0:02:59]} 3. d4 {[%clk 0:02:56]}  d5 {[%clk 0:02:59]} 4. exd5 {[%clk 0:02:55]}  exd5 {[%clk 0:03:00]} 5. Bb5+ {[%clk 0:02:54]}  Nc6 {[%clk 0:03:00]} 6. Nf3 {[%clk 0:02:52]}  Bd6 {[%clk 0:03:00]} 7. dxc5 {[%clk 0:02:50]}  Bxc5 {[%clk 0:03:01]} 8. O-O {[%clk 0:02:50]}  Ne7 {[%clk 0:03:01]} 9. Nbd2 {[%clk 0:02:49]}  O-O {[%clk 0:03:01]} 10. Nb3 {[%clk 0:02:48]}  Bb6 {[%clk 0:03:01]} 11. h3 {[%clk 0:02:40]}  Nf5 {[%clk 0:02:54]} 12. Re1 {[%clk 0:02:36]}  h6 {[%clk 0:02:49]} 13. Bd3 {[%clk 0:02:27]}  Qf6 {[%clk 0:02:33]} 14. Bc2 {[%clk 0:02:23]}  Be6 {[%clk 0:02:30]} 15. Qd3 {[%clk 0:02:22]}  Rfe8 {[%clk 0:02:24]} 16. Nbd4 {[%clk 0:01:56]}  Ncxd4 {[%clk 0:02:22]} 17. Nxd4 {[%clk 0:01:48]}  Nxd4 {[%clk 0:02:17]} 18. cxd4 {[%clk 0:01:35]}  Bxd4 {[%clk 0:02:16]} 19. Be3 {[%clk 0:01:26]}  Bxe3 {[%clk 0:02:14]} 20. Rxe3 {[%clk 0:01:15]}  g6 {[%clk 0:02:10]} 21. Rae1 {[%clk 0:00:49]}  Kg7 {[%clk 0:02:09]} 22. b3 {[%clk 0:00:44]}  Rac8 {[%clk 0:02:06]} 23. Qd1 {[%clk 0:00:36]}  Rc6 {[%clk 0:01:51]} 24. Rf3 {[%clk 0:00:31]}  Qb2 {[%clk 0:01:50]} 25. Re2 {[%clk 0:00:29]}  Rec8 {[%clk 0:01:42]} 26. Bxg6 {[%clk 0:00:23]}  Rc1 {[%clk 0:01:42]} 27. Rxb2 {[%clk 0:00:15]}  Rxd1+ {[%clk 0:01:41]} 28. Kh2 {[%clk 0:00:15]}  fxg6 {[%clk 0:01:42]} 0-1


[Site "https://www.chess.com"]

[Event "Titled Tuesday Blitz June 29 2021"]
[White "rynos0411"]
[Black "Alexander_Moskalenko"]
[WhiteElo "2448"]
[BlackElo "2913"]
[Result "0-1"]
[Round "01"]
[TimeControl "180+1"]
[Date "2021.06.29"]
[WhiteClock "0:00:02"]
[BlackClock "0:00:40"]

1. d4 {[%clk 0:02:53]}  f5 {[%clk 0:02:54]} 2. Bg5 {[%clk 0:02:47]}  Nf6 {[%clk 0:02:53]} 3. Bxf6 {[%clk 0:02:43]}  exf6 {[%clk 0:02:53]} 4. e3 {[%clk 0:02:43]}  d5 {[%clk 0:02:54]} 5. Nd2 {[%clk 0:02:42]}  Be6 {[%clk 0:02:51]} 6. h4 {[%clk 0:02:39]}  h5 {[%clk 0:02:32]} 7. Be2 {[%clk 0:02:26]}  g6 {[%clk 0:02:32]} 8. c4 {[%clk 0:02:22]}  c6 {[%clk 0:02:32]} 9. Qb3 {[%clk 0:02:20]}  Qd7 {[%clk 0:02:26]} 10. Nh3 {[%clk 0:02:17]}  Bh6 {[%clk 0:02:23]} 11. O-O {[%clk 0:02:08]}  Kf7 {[%clk 0:02:18]} 12. Rac1 {[%clk 0:01:56]}  a5 {[%clk 0:02:14]} 13. cxd5 {[%clk 0:01:40]}  cxd5 {[%clk 0:02:12]} 14. Qb6 {[%clk 0:01:34]}  Nc6 {[%clk 0:02:04]} 15. Bb5 {[%clk 0:01:27]}  Rhc8 {[%clk 0:02:03]} 16. Nb3 {[%clk 0:01:26]}  Qc7 {[%clk 0:01:52]} 17. Qc5 {[%clk 0:01:16]}  Bf8 {[%clk 0:01:50]} 18. Qc2 {[%clk 0:01:15]}  Qb6 {[%clk 0:01:47]} 19. Bxc6 {[%clk 0:01:03]}  Rxc6 {[%clk 0:01:48]} 20. Nc5 {[%clk 0:01:02]}  Rac8 {[%clk 0:01:41]} 21. Qb3 {[%clk 0:00:24]}  Qxb3 {[%clk 0:01:38]} 22. Nxb3 {[%clk 0:00:23]}  a4 {[%clk 0:01:30]} 23. Rxc6 {[%clk 0:00:20]}  Rxc6 {[%clk 0:01:31]} 24. Nc1 {[%clk 0:00:07]}  Rc2 {[%clk 0:01:14]} 25. Nd3 {[%clk 0:00:05]}  Bd7 {[%clk 0:01:14]} 26. Nhf4 {[%clk 0:00:05]}  Bb5 {[%clk 0:01:09]} 27. Rc1 {[%clk 0:00:04]}  Rd2 {[%clk 0:01:03]} 28. Nc5 {[%clk 0:00:02]}  Rxb2 {[%clk 0:00:54]} 29. Nxb7 {[%clk 0:00:02]}  Bc4 {[%clk 0:00:48]} 30. Nd8+ {[%clk 0:00:02]}  Ke8 {[%clk 0:00:46]} 31. Nc6 {[%clk 0:00:03]}  Rxa2 {[%clk 0:00:43]} 32. Na5 {[%clk 0:00:03]}  Ba3 {[%clk 0:00:43]} 33. Rd1 {[%clk 0:00:02]}  Bb4 {[%clk 0:00:40]} 0-1


[Site "https://www.chess.com"]

[Event "Titled Tuesday Blitz June 29 2021"]
[White "sau6on"]
[Black "chessdjw"]
[WhiteElo "2399"]
[BlackElo "2772"]
[Result "0-1"]
[Round "01"]
[TimeControl "180+1"]
[Date "2021.06.29"]
[WhiteClock "0:00:15"]
[BlackClock "0:01:37"]

1. d4 {[%clk 0:03:00]}  Nf6 {[%clk 0:02:59]} 2. c4 {[%clk 0:03:00]}  g6 {[%clk 0:02:59]} 3. Nc3 {[%clk 0:03:00]}  d5 {[%clk 0:02:59]} 4. e3 {[%clk 0:03:00]}  Bg7 {[%clk 0:02:59]} 5. Qb3 {[%clk 0:03:00]}  dxc4 {[%clk 0:02:55]} 6. Bxc4 {[%clk 0:03:01]}  O-O {[%clk 0:02:55]} 7. Nf3 {[%clk 0:03:01]}  c5 {[%clk 0:02:54]} 8. dxc5 {[%clk 0:03:00]}  Nbd7 {[%clk 0:02:54]} 9. Qa3 {[%clk 0:03:00]}  Qc7 {[%clk 0:02:50]} 10. b4 {[%clk 0:03:00]}  a5 {[%clk 0:02:49]} 11. O-O {[%clk 0:02:56]}  b6 {[%clk 0:02:38]} 12. Bb2 {[%clk 0:02:20]}  Bb7 {[%clk 0:02:20]} 13. Nb5 {[%clk 0:01:47]}  Qb8 {[%clk 0:02:19]} 14. cxb6 {[%clk 0:01:28]}  Ng4 {[%clk 0:02:18]} 15. h3 {[%clk 0:00:57]}  axb4 {[%clk 0:02:17]} 16. Qxb4 {[%clk 0:00:56]}  Bxb2 {[%clk 0:02:17]} 17. Qxb2 {[%clk 0:00:56]}  Nxb6 {[%clk 0:02:18]} 18. Be2 {[%clk 0:00:53]}  Bxf3 {[%clk 0:02:15]} 19. hxg4 {[%clk 0:00:53]}  Na4 {[%clk 0:02:16]} 20. Qd2 {[%clk 0:00:53]}  Rd8 {[%clk 0:02:15]} 21. Qc2 {[%clk 0:00:52]}  Bxe2 {[%clk 0:02:09]} 22. Qxe2 {[%clk 0:00:51]}  Qe5 {[%clk 0:02:10]} 23. Rac1 {[%clk 0:00:23]}  Rab8 {[%clk 0:02:08]} 24. Na3 {[%clk 0:00:22]}  Nc3 {[%clk 0:02:02]} 25. Qc2 {[%clk 0:00:20]}  Rdc8 {[%clk 0:02:00]} 26. Qd3 {[%clk 0:00:19]}  Nxa2 {[%clk 0:01:45]} 27. Rxc8+ {[%clk 0:00:20]}  Rxc8 {[%clk 0:01:45]} 28. Nb5 {[%clk 0:00:20]}  Nc1 {[%clk 0:01:41]} 29. Qb1 {[%clk 0:00:16]}  Ne2+ {[%clk 0:01:38]} 30. Kh1 {[%clk 0:00:17]}  Rc5 {[%clk 0:01:36]} 31. Qd3 {[%clk 0:00:16]}  Qh5+ {[%clk 0:01:36]} 32. gxh5 {[%clk 0:00:15]}  Rxh5# {[%clk 0:01:37]} 0-1


[Site "https://www.chess.com"]

[Event "Titled Tuesday Blitz June 29 2021"]
[White "tteshan"]
[Black "tdf98pantani"]
[WhiteElo "2340"]
[BlackElo "2649"]
[Result "1-0"]
[Round "01"]
[TimeControl "180+1"]
[Date "2021.06.29"]
[WhiteClock "0:01:16"]
[BlackClock "0:01:53"]

1. e4 {[%clk 0:03:00]}  e6 {[%clk 0:02:51]} 2. d4 {[%clk 0:03:00]}  d5 {[%clk 0:02:51]} 3. Nd2 {[%clk 0:02:59]}  c5 {[%clk 0:02:48]} 4. exd5 {[%clk 0:02:59]}  exd5 {[%clk 0:02:49]} 5. Bb5+ {[%clk 0:02:57]}  Nc6 {[%clk 0:02:48]} 6. Ngf3 {[%clk 0:02:56]}  Bd6 {[%clk 0:02:46]} 7. dxc5 {[%clk 0:02:52]}  Bxc5 {[%clk 0:02:46]} 8. O-O {[%clk 0:02:53]}  Ne7 {[%clk 0:02:46]} 9. Nb3 {[%clk 0:02:52]}  Bd6 {[%clk 0:02:46]} 10. Nbd4 {[%clk 0:02:50]}  O-O {[%clk 0:02:46]} 11. h3 {[%clk 0:02:49]}  Bc7 {[%clk 0:02:44]} 12. Re1 {[%clk 0:02:38]}  Qd6 {[%clk 0:02:43]} 13. c3 {[%clk 0:02:37]}  Ng6 {[%clk 0:02:31]} 14. Bd3 {[%clk 0:02:27]}  Bd7 {[%clk 0:02:27]} 15. Nf5 {[%clk 0:02:24]}  Bxf5 {[%clk 0:02:22]} 16. Bxf5 {[%clk 0:02:24]}  Rfe8 {[%clk 0:02:19]} 17. g3 {[%clk 0:02:08]}  Rad8 {[%clk 0:02:16]} 18. Rxe8+ {[%clk 0:02:04]}  Rxe8 {[%clk 0:02:15]} 19. Bxg6 {[%clk 0:02:02]}  hxg6 {[%clk 0:02:15]} 20. Bf4 {[%clk 0:02:01]}  Qd7 {[%clk 0:02:14]} 21. Bxc7 {[%clk 0:02:01]}  Qxc7 {[%clk 0:02:14]} 22. Qxd5 {[%clk 0:02:01]}  Qb6 {[%clk 0:02:14]} 23. Qd2 {[%clk 0:01:57]}  Rd8 {[%clk 0:02:09]} 24. Qe2 {[%clk 0:01:49]}  Qa5 {[%clk 0:02:09]} 25. h4 {[%clk 0:01:43]}  Qd5 {[%clk 0:02:04]} 26. Re1 {[%clk 0:01:27]}  Qxa2 {[%clk 0:02:02]} 27. Qe8+ {[%clk 0:01:25]}  Kh7 {[%clk 0:01:54]} 28. Ng5+ {[%clk 0:01:17]}  Kh6 {[%clk 0:01:54]} 29. Nxf7+ {[%clk 0:01:17]}  Kh5 {[%clk 0:01:53]} 30. Nxd8 {[%clk 0:01:16]} 1-0


[Site "https://www.chess.com"]

[Event "Titled Tuesday Blitz June 29 2021"]
[White "tvjosue"]
[Black "kudesnik84"]
[WhiteElo "2682"]
[BlackElo "2357"]
[Result "1-0"]
[Round "01"]
[TimeControl "180+1"]
[Date "2021.06.29"]
[WhiteClock "0:01:24"]
[BlackClock "0:00:01"]

1. Nf3 {[%clk 0:03:00]}  g6 {[%clk 0:03:00]} 2. g3 {[%clk 0:03:00]}  Bg7 {[%clk 0:03:00]} 3. Bg2 {[%clk 0:03:00]}  Nf6 {[%clk 0:03:01]} 4. O-O {[%clk 0:03:01]}  O-O {[%clk 0:03:02]} 5. d4 {[%clk 0:03:01]}  d6 {[%clk 0:03:02]} 6. c4 {[%clk 0:03:01]}  c6 {[%clk 0:03:01]} 7. Nc3 {[%clk 0:03:00]}  Nbd7 {[%clk 0:02:58]} 8. b3 {[%clk 0:02:50]}  Re8 {[%clk 0:02:47]} 9. e3 {[%clk 0:02:41]}  a5 {[%clk 0:02:44]} 10. Bb2 {[%clk 0:02:40]}  e5 {[%clk 0:02:41]} 11. Rc1 {[%clk 0:02:37]}  Qe7 {[%clk 0:02:01]} 12. Ba3 {[%clk 0:02:35]}  Bf8 {[%clk 0:01:16]} 13. Re1 {[%clk 0:02:21]}  Rd8 {[%clk 0:01:06]} 14. d5 {[%clk 0:02:08]}  c5 {[%clk 0:00:52]} 15. Nd2 {[%clk 0:02:00]}  Ne8 {[%clk 0:00:40]} 16. e4 {[%clk 0:01:55]}  Bh6 {[%clk 0:00:38]} 17. Rc2 {[%clk 0:01:52]}  f5 {[%clk 0:00:35]} 18. exf5 {[%clk 0:01:46]}  gxf5 {[%clk 0:00:35]} 19. Nb5 {[%clk 0:01:40]}  Ndf6 {[%clk 0:00:23]} 20. Nf1 {[%clk 0:01:40]}  Bd7 {[%clk 0:00:20]} 21. Rd2 {[%clk 0:01:36]}  Ng7 {[%clk 0:00:16]} 22. Rde2 {[%clk 0:01:34]}  Rac8 {[%clk 0:00:12]} 23. Bc1 {[%clk 0:01:32]}  Bxc1 {[%clk 0:00:10]} 24. Qxc1 {[%clk 0:01:33]}  Bxb5 {[%clk 0:00:07]} 25. cxb5 {[%clk 0:01:34]}  Re8 {[%clk 0:00:08]} 26. Ne3 {[%clk 0:01:33]}  Qf7 {[%clk 0:00:08]} 27. Nxf5 {[%clk 0:01:33]}  Nxf5 {[%clk 0:00:07]} 28. Bh3 {[%clk 0:01:33]}  Nxd5 {[%clk 0:00:06]} 29. f4 {[%clk 0:01:28]}  Nd4 {[%clk 0:00:03]} 30. Rf2 {[%clk 0:01:24]}  e4 {[%clk 0:00:01]} 31. Bxc8 {[%clk 0:01:24]} 1-0


[Site "https://www.chess.com"]